bitfinex/quotes_BTCUSD_20260311
["timestamp","ask_amount","ask_price","bid_price","bid_amount"]
[1773209217473,0.08585186,69649.0,69632.0,0.07180606]
[1773209217645,0.08585186,69647.0,69630.0,0.07180606]
[1773209217819,0.07178957,69648.0,69630.0,0.07180606]
[1773209217820,0.08585186,69645.0,69630.0,0.07180606]
[1773209220036,0.08585186,69643.0,69630.0,0.07180606]
[1773209221052,0.24130367,69663.0,69636.0,0.06858285]
[1773209221053,0.07178727,69651.0,69636.0,0.06858285]
[1773209221278,0.00144,69650.0,69636.0,0.06858285]
[1773209221473,0.08585186,69649.0,69636.0,0.06858285]
[1773209221857,0.21397158,69651.0,69636.0,0.06858285]
[1773209222062,0.001,69643.0,69637.0,0.07180091]
[1773209223354,0.00144,69648.0,69637.0,0.07180091]
[1773209223709,0.08585186,69647.0,69637.0,0.07180091]
[1773209224236,0.08585186,69647.0,69636.0,0.07300091]
[1773209224237,0.08585186,69647.0,69636.0,0.0002]
[1773209224650,0.08585186,69647.0,69637.0,0.001]
[1773209224962,0.07179075,69647.0,69636.0,0.0002]
[1773209225166,0.08585186,69646.0,69633.0,0.07324485]
[1773209225374,0.08585186,69646.0,69636.0,0.001]
[1773209226376,0.08585186,69644.0,69636.0,0.001]
[1773209226573,0.08585186,69644.0,69632.0,0.07180603]
[1773209227649,0.08685186,69644.0,69632.0,0.07180603]
[1773209227996,0.00144,69643.0,69632.0,0.07180603]
[1773209228207,0.08685186,69644.0,69632.0,0.07180603]
[1773209228407,0.07179575,69642.0,69632.0,0.07180603]
[1773209228847,0.00144,69641.0,69632.0,0.07180603]
[1773209230656,0.07323708,69641.0,69631.0,0.07180641]
[1773209230865,0.08585186,69640.0,69631.0,0.07180641]
[1773209231410,0.08585186,69640.0,69629.0,0.07200884]
[1773209232083,0.08585186,69640.0,69626.0,0.0002]
[1773209232309,0.08585186,69640.0,69626.0,0.07201224]
[1773209232649,0.08585186,69638.0,69626.0,0.07201224]
[1773209233251,0.07179884,69639.0,69626.0,0.07201224]
[1773209233499,0.001,69640.0,69629.0,0.04949523]
[1773209233673,0.002,69640.0,69630.0,0.06687457]
[1773209233885,0.00144,69639.0,69630.0,0.06687457]
[1773209234885,0.00144,69639.0,69631.0,0.07180709]
[1773209235125,0.07179604,69642.0,69631.0,0.07180709]
[1773209235332,0.00144,69641.0,69631.0,0.07180709]
[1773209235938,0.07179314,69645.0,69631.0,0.07180709]
[1773209236138,0.07179314,69645.0,69632.0,0.06650082]
[1773209236334,0.00144,69644.0,69632.0,0.06650082]
[1773209237003,0.00144,69644.0,69633.0,0.07180503]
[1773209237582,0.0732337,69644.0,69633.0,0.07180503]
[1773209238502,0.08729186,69643.0,69633.0,0.07180503]
[1773209239084,0.07323561,69643.0,69631.0,0.07180709]
[1773209239250,0.08585186,69642.0,69631.0,0.07180709]
[1773209240100,0.08585186,69642.0,69633.0,0.0002]
[1773209241061,0.15764781,69642.0,69633.0,0.0002]
[1773209243757,0.07179595,69642.0,69633.0,0.0002]
[1773209243959,0.08061619,69641.0,69633.0,0.0002]
[1773209245375,0.15241311,69641.0,69633.0,0.0002]
[1773209245526,0.15241311,69641.0,69631.0,0.06200709]
[1773209247446,0.08061619,69641.0,69631.0,0.06200709]
[1773209247637,0.15241334,69641.0,69631.0,0.06200709]
[1773209249178,0.08061619,69640.0,69631.0,0.06200709]
[1773209249403,0.07179884,69639.0,69628.0,0.07181019]
[1773209250433,0.07179884,69639.0,69631.0,0.0002]
[1773209250711,0.08061619,69638.0,69631.0,0.0002]
[1773209251039,0.08205619,69637.0,69631.0,0.0002]
[1773209252025,0.15385774,69637.0,69631.0,0.0002]
[1773209252210,0.15241774,69637.0,69631.0,0.0002]
[1773209252414,0.00144,69636.0,69631.0,0.0002]
[1773209254221,0.08061619,69635.0,69631.0,0.0002]
[1773209254384,0.07324212,69636.0,69631.0,0.0002]
[1773209254730,0.00144,69636.0,69631.0,0.0002]
[1773209255492,0.07324221,69636.0,69631.0,0.0002]
[1773209256000,0.00144,69636.0,69631.0,0.0002]
[1773209257252,0.00144,69636.0,69631.0,0.0002]
[1773209257543,0.08112443,69635.0,69631.0,0.0002]
[1773209259497,0.08112443,69633.0,69631.0,0.0002]
[1773209259697,0.08112443,69633.0,69625.0,0.00043]
[1773209259845,0.08112443,69633.0,69624.0,0.07201398]
[1773209260256,0.08112443,69633.0,69624.0,0.07201408]
[1773209262338,0.07180606,69632.0,69624.0,0.0002]
[1773209267368,0.15293255,69630.0,69624.0,0.0002]
[1773209267986,0.07180812,69630.0,69624.0,0.0002]
[1773209269678,0.07180606,69632.0,69624.0,0.0002]
[1773209270711,0.08593455,69631.0,69624.0,0.0002]
[1773209273778,0.0718067,69632.0,69624.0,0.0002]
[1773209275114,0.08593455,69631.0,69624.0,0.0002]
[1773209276688,0.07180812,69630.0,69624.0,0.0002]
[1773209281324,0.07202813,69630.0,69624.0,0.0002]
[1773209282132,0.07180297,69635.0,69624.0,0.0002]
[1773209282318,0.00144,69633.0,69624.0,0.0002]
[1773209283991,0.07180606,69632.0,69625.0,0.07181328]
[1773209284185,0.00144,69633.0,69625.0,0.07181328]
[1773209284361,0.025,70155.0,69627.0,0.0673444]
[1773209284362,0.00045001,69650.0,69627.0,0.0673444]
[1773209284563,0.00045001,69650.0,69626.0,0.05094874]
[1773209284564,0.00166001,69647.0,69637.0,0.04950874]
[1773209284747,0.00022001,69647.0,69637.0,0.04950874]
[1773209284948,0.00166001,69647.0,69637.0,0.04950874]
[1773209285282,0.00022001,69647.0,69637.0,0.04950874]
[1773209285593,0.00144,69646.0,69637.0,0.04950874]
[1773209286122,0.00144,69646.0,69638.0,0.07179987]
[1773209286857,0.00022001,69647.0,69638.0,0.07179987]
[1773209287061,0.00045001,69650.0,69638.0,0.07179987]
[1773209287270,0.00045001,69650.0,69640.0,0.11652891]
[1773209288267,0.00045001,69650.0,69641.0,0.07179678]
[1773209289822,1e-08,69656.0,69641.0,0.07179678]
[1773209290034,1e-08,69656.0,69646.0,0.04950874]
[1773209290229,0.15771189,69660.0,69647.0,0.0717906]
[1773209290230,0.15915189,69660.0,69647.0,0.0717906]
[1773209290470,0.07321734,69660.0,69650.0,0.04950874]
[1773209290682,0.07177734,69660.0,69650.0,0.04950874]
[1773209290885,0.15915189,69660.0,69650.0,0.04950874]
[1773209291631,0.08737455,69660.0,69650.0,0.04950874]
[1773209291842,0.00144,69660.0,69650.0,0.04950874]
[1773209292475,0.00144,69660.0,69651.0,0.07178647]
[1773209292696,0.07177636,69661.0,69651.0,0.07178647]
[1773209292858,0.00144,69659.0,69651.0,0.07178647]
[1773209293065,0.08737455,69662.0,69651.0,0.07178647]
[1773209294812,0.15915032,69662.0,69651.0,0.07178647]
[1773209296439,0.00022001,69660.0,69651.0,0.07178647]
[1773209296841,0.08737455,69662.0,69651.0,0.07178647]
[1773209297058,0.00144,69662.0,69651.0,0.07178647]
[1773209297990,0.00144,69662.0,69646.0,0.07179063]
[1773209298164,0.08593455,69661.0,69650.0,0.04950874]
[1773209299139,0.08593455,69661.0,69651.0,0.07178647]
[1773209299665,0.07177226,69665.0,69651.0,0.07178647]
[1773209299870,0.0801127,69664.0,69651.0,0.07178647]
[1773209301589,0.07177411,69663.0,69650.0,0.04946764]
[1773209301901,0.0786727,69662.0,69650.0,0.04946764]
[1773209302901,0.0786727,69662.0,69650.0,0.05046764]
[1773209304667,0.15044872,69662.0,69651.0,0.07178647]
[1773209305084,0.15044872,69662.0,69650.0,0.07078577]
[1773209305085,0.0786727,69661.0,69650.0,0.07078577]
[1773209305315,0.0786727,69661.0,69650.0,0.04966764]
[1773209305689,0.00144,69660.0,69650.0,0.12245493]
[1773209306187,0.00144,69660.0,69650.0,0.12145493]
[1773209306492,0.00144,69660.0,69650.0,0.12245493]
[1773209306901,0.0717772,69660.0,69650.0,0.12245493]
[1773209307105,0.00144,69659.0,69650.0,0.12245493]
[1773209307333,0.00022001,69662.0,69650.0,0.12245493]
[1773209307452,0.00144,69660.0,69650.0,0.17476417]
[1773209307656,0.00144,69660.0,69650.0,0.17376417]
[1773209309525,0.00144,69660.0,69650.0,0.17476417]
[1773209310618,0.0717742,69663.0,69650.0,0.12245493]
[1773209310619,0.0786727,69663.0,69650.0,0.12245493]
[1773209310942,0.00144,69664.0,69650.0,0.12145493]
[1773209311141,0.0786727,69663.0,69650.0,0.12145493]
[1773209311586,0.07177514,69662.0,69650.0,0.12145493]
[1773209311816,0.15044784,69662.0,69650.0,0.12145493]
[1773209312061,0.0786727,69661.0,69650.0,0.12145493]
[1773209312261,0.0786727,69661.0,69650.0,0.12245493]
[1773209312466,0.0786727,69661.0,69650.0,0.12145493]
[1773209313594,0.0786727,69661.0,69650.0,0.12245493]
[1773209313595,0.15044908,69661.0,69650.0,0.12245493]
[1773209314583,0.00022001,69664.0,69650.0,0.12245493]
[1773209314784,0.00166001,69664.0,69654.0,0.04946764]
[1773209315110,0.00166001,69664.0,69650.0,0.17489238]
[1773209315451,0.00166001,69664.0,69651.0,0.00144]
[1773209315718,0.00166001,69664.0,69652.0,0.07178544]
[1773209316871,0.00166001,69664.0,69654.0,0.04946764]
[1773209317072,0.00022001,69664.0,69654.0,0.04946764]
[1773209318175,0.00022001,69664.0,69655.0,0.07178235]
[1773209321079,0.0820272,69663.0,69654.0,0.07178268]
[1773209322403,0.0830272,69663.0,69654.0,0.07178268]
[1773209322766,0.0820272,69663.0,69653.0,0.07178235]
[1773209323943,0.07177448,69663.0,69653.0,0.07178235]
[1773209324138,0.0820272,69662.0,69653.0,0.07178235]
[1773209326909,0.00144,69663.0,69653.0,0.07178235]
[1773209327047,0.00144,69663.0,69653.0,0.12124999]
[1773209327246,0.07198601,69671.0,69654.0,0.08599613]
[1773209327547,0.00166001,69671.0,69661.0,0.08599613]
[1773209328446,0.00022001,69671.0,69661.0,0.08599613]
[1773209328793,0.00022001,69671.0,69662.0,0.15777127]
[1773209332765,0.00012001,69671.0,69662.0,0.15777127]
[1773209333187,0.00012001,69671.0,69662.0,0.15592653]
[1773209335046,0.07216382,69673.0,69663.0,0.08415139]
[1773209335249,0.07198338,69674.0,69663.0,0.08415139]
[1773209335250,0.00022001,69674.0,69664.0,0.08415139]
[1773209336426,0.00022001,69674.0,69662.0,0.07177514]
[1773209336785,1e-08,69674.0,69665.0,0.08415139]
[1773209337192,1e-08,69674.0,69666.0,0.00144]
[1773209337980,0.08090412,69673.0,69662.0,0.07177514]
[1773209338231,0.08090412,69673.0,69663.0,0.00144]
[1773209338634,0.08090412,69673.0,69662.0,0.07177514]
[1773209338838,0.08090412,69673.0,69663.0,0.00144]
[1773209339607,0.08090412,69673.0,69664.0,0.07177308]
[1773209339807,1e-08,69674.0,69664.0,0.07177308]
[1773209340215,0.001,69673.0,69664.0,0.07177308]
[1773209340420,1e-08,69674.0,69664.0,0.12124072]
[1773209340659,0.0002486,69681.0,69665.0,0.08415139]
[1773209340840,0.00144,69678.0,69668.0,0.04946764]
[1773209341568,0.08234412,69678.0,69668.0,0.04946764]
[1773209341780,0.00144,69678.0,69669.0,0.07176793]
[1773209341988,0.00022001,69674.0,69669.0,0.07176793]
[1773209342965,0.00022001,69674.0,69669.0,0.07159787]
[1773209344130,0.00022001,69674.0,69668.0,0.07176793]
[1773209346193,0.00022001,69674.0,69666.0,0.07176793]
[1773209349538,0.00022001,69674.0,69666.0,0.07196793]
[1773209353655,0.00022001,69674.0,69655.0,0.0002]
[1773209353656,0.07176381,69673.0,69655.0,0.0002]
[1773209353952,0.08090412,69669.0,69655.0,0.07342139]
[1773209354520,0.08090412,69669.0,69656.0,0.07178132]
[1773209355181,0.08090412,69669.0,69655.0,0.0002]
[1773209355182,0.07176896,69668.0,69655.0,0.0002]
[1773209355381,0.08090412,69667.0,69659.0,0.001]
[1773209355616,0.08090412,69665.0,69659.0,0.001]
[1773209356814,0.08090412,69665.0,69655.0,0.0002]
[1773209357016,0.08190412,69665.0,69655.0,0.0002]
[1773209359035,0.1526772,69664.0,69655.0,0.0002]
[1773209359291,0.07177308,69664.0,69659.0,0.0002]
[1773209359502,0.08090412,69663.0,69655.0,0.0002]
[1773209361873,0.0788643,69661.0,69655.0,0.0002]
[1773209363349,0.0788643,69661.0,69651.0,0.07178638]
[1773209365686,0.0717768,69661.0,69650.0,0.04990193]
[1773209365887,0.0788643,69660.0,69650.0,0.12168943]
[1773209366261,0.0788643,69658.0,69652.0,0.0002]
[1773209366805,0.0788643,69658.0,69656.0,0.0004]
[1773209367204,0.00144,69659.0,69656.0,0.0004]
[1773209367910,0.07177926,69658.0,69656.0,0.0004]
[1773209368877,0.0788643,69657.0,69652.0,0.0002]
[1773209369422,0.07177926,69658.0,69652.0,0.0002]
[1773209371283,0.15064356,69658.0,69652.0,0.0002]
[1773209372332,0.15164356,69658.0,69652.0,0.0002]
[1773209372638,0.15064356,69658.0,69652.0,0.0002]
[1773209375006,0.07177926,69658.0,69652.0,0.0002]
[1773209376054,0.07321905,69659.0,69652.0,0.0002]
[1773209377864,0.08015972,69658.0,69652.0,0.0002]
[1773209378995,0.07178029,69657.0,69652.0,0.0002]
[1773209379166,0.08015972,69656.0,69652.0,0.0002]
[1773209379859,0.07178029,69657.0,69652.0,0.0002]
[1773209380261,0.15194001,69657.0,69652.0,0.0002]
[1773209381570,0.15194001,69657.0,69648.0,0.00582]
[1773209381571,0.07178029,69657.0,69648.0,0.00582]
[1773209381773,0.07178029,69657.0,69647.0,9.6e-05]
[1773209381774,0.08015972,69656.0,69647.0,9.6e-05]
[1773209381995,0.08015972,69656.0,69645.0,0.0002]
[1773209382627,0.08015972,69656.0,69641.0,0.07179637]
[1773209383431,0.15194207,69655.0,69640.0,0.12126889]
[1773209383789,0.07178235,69655.0,69640.0,0.12126889]
[1773209384007,0.08015972,69654.0,69640.0,0.12126889]
[1773209384233,0.08159972,69653.0,69640.0,0.12126889]
[1773209385092,0.08159972,69653.0,69640.0,0.07179696]
[1773209385795,0.08159972,69653.0,69628.0,0.07198201]
[1773209385796,0.08015972,69651.0,69628.0,0.07198201]
[1773209386018,0.07178544,69652.0,69628.0,0.07198201]
[1773209386019,0.08015972,69649.0,69628.0,0.07198201]
[1773209386205,0.08015972,69649.0,69630.0,0.04947193]
[1773209387650,0.08015972,69649.0,69638.0,0.0004]
[1773209388080,0.07178957,69648.0,69638.0,0.0004]
[1773209388316,0.08159972,69647.0,69638.0,0.0004]
[1773209390267,0.08094515,69645.0,69638.0,0.0005237]
[1773209391253,0.08194515,69645.0,69638.0,0.0005237]
[1773209392177,0.08094515,69645.0,69638.0,0.0005237]
[1773209392347,0.07179369,69644.0,69638.0,0.0005237]
[1773209392547,0.15273884,69644.0,69638.0,0.0005237]
[1773209393250,0.07179369,69644.0,69638.0,0.0005237]
[1773209393484,0.08094515,69643.0,69638.0,0.0005237]
[1773209396163,0.08094515,69643.0,69611.0,0.21464349]
[1773209396164,0.08094515,69641.0,69622.0,0.0002]
[1773209396310,0.07179575,69642.0,69621.0,1e-08]
[1773209396311,0.08094515,69634.0,69621.0,1e-08]
[1773209396515,0.44524737,69640.0,69621.0,1e-08]
[1773209396516,0.08094515,69630.0,69621.0,1e-08]
[1773209396753,0.44524737,69640.0,69621.0,1e-08]
[1773209396754,0.08094515,69628.0,69621.0,1e-08]
[1773209396954,0.00113067,69627.0,69621.0,1e-08]
[1773209397131,0.00144,69626.0,69621.0,1e-08]
[1773209397331,0.00128532,69625.0,69621.0,1e-08]
[1773209397537,0.00144,69625.0,69621.0,1e-08]
[1773209397943,0.08094515,69634.0,69621.0,1e-08]
[1773209398137,0.08094515,69631.0,69624.0,0.0002]
[1773209398943,0.00144,69630.0,69624.0,0.0002]
[1773209399267,0.08094515,69631.0,69624.0,0.0002]
[1773209399473,0.08094515,69628.0,69624.0,0.0002]
[1773209400122,0.07181225,69626.0,69624.0,0.0002]
[1773209400631,0.07325225,69626.0,69624.0,0.0002]
[1773209400975,0.07181225,69626.0,69624.0,0.0002]
[1773209401174,0.07325225,69626.0,69624.0,0.0002]
[1773209401963,0.07181225,69626.0,69624.0,0.0002]
[1773209402157,0.1541974,69626.0,69624.0,0.0002]
[1773209402483,0.07181225,69626.0,69624.0,0.0002]
[1773209402781,0.07325225,69626.0,69624.0,0.0002]
[1773209402940,0.07181225,69626.0,69621.0,1e-08]
[1773209403147,0.07325225,69626.0,69621.0,1e-08]
[1773209403949,0.07181225,69626.0,69621.0,1e-08]
[1773209404158,0.07325225,69626.0,69621.0,1e-08]
[1773209404762,0.07325225,69626.0,69624.0,0.0002]
[1773209404966,0.07181225,69626.0,69624.0,0.0002]
[1773209405160,0.07325225,69626.0,69624.0,0.0002]
[1773209405987,0.07181225,69626.0,69624.0,0.0002]
[1773209406186,0.07325225,69626.0,69624.0,0.0002]
[1773209406627,0.07325225,69626.0,69621.0,1e-08]
[1773209407167,0.07325225,69626.0,69621.0,0.00040001]
[1773209408504,0.07180587,69633.0,69621.0,0.00040001]
[1773209408505,0.07179575,69644.0,69623.0,0.07710113]
[1773209408704,0.07179575,69644.0,69630.0,0.04947193]
[1773209408705,0.00144,69641.0,69630.0,0.04947193]
[1773209408879,0.00144,69640.0,69629.0,0.07710113]
[1773209409888,0.07279575,69642.0,69629.0,0.07710113]
[1773209410193,0.00144,69639.0,69629.0,0.07710113]
[1773209410341,0.07179987,69638.0,69629.0,0.14890985]
[1773209410840,0.0001386,69643.0,69630.0,0.07710113]
[1773209410841,0.07179657,69642.0,69630.0,0.07710113]
[1773209410980,0.00144,69641.0,69630.0,0.07710113]
[1773209411386,0.07193412,69643.0,69630.0,0.07710113]
[1773209411592,0.00144,69642.0,69630.0,0.07710113]
[1773209411908,0.07193412,69643.0,69630.0,0.07710113]
[1773209412079,0.07179472,69645.0,69636.0,0.07710113]
[1773209412080,0.00144,69645.0,69636.0,0.07710113]
[1773209412281,0.00144,69645.0,69637.0,0.07180091]
[1773209412480,0.07323164,69646.0,69637.0,0.14890204]
[1773209412989,0.00022001,69642.0,69638.0,0.07710113]
[1773209413615,0.00022001,69647.0,69638.0,0.07710113]
[1773209413913,0.07199997,69658.0,69639.0,0.00144]
[1773209413914,0.00022001,69658.0,69639.0,0.00144]
[1773209414101,0.00166001,69658.0,69649.0,0.07710113]
[1773209414283,0.00166001,69658.0,69650.0,0.0717875]
[1773209414284,0.00022001,69658.0,69650.0,0.0717875]
[1773209414505,0.00022001,69658.0,69651.0,0.07710113]
[1773209414632,0.00144,69659.0,69651.0,0.07710113]
[1773209414838,0.00144,69660.0,69651.0,0.07710113]
[1773209415039,0.00144,69662.0,69651.0,0.07710113]
[1773209415240,0.00040551,69663.0,69651.0,0.07710113]
[1773209415461,0.00144,69662.0,69651.0,0.07710113]
[1773209416647,0.00144,69662.0,69653.0,0.07710113]
[1773209417362,0.07217968,69663.0,69653.0,0.07710113]
[1773209417738,0.00040551,69663.0,69653.0,0.07710113]
[1773209418384,0.07218004,69663.0,69653.0,0.07710113]
[1773209418567,0.07218004,69663.0,69653.0,0.14888542]
[1773209419151,0.07218004,69663.0,69653.0,0.07178429]
[1773209420506,0.07631098,69660.0,69651.0,0.00144]
[1773209420826,0.07631098,69660.0,69646.0,0.00144]
[1773209420950,0.07631098,69660.0,69646.0,0.0732315]
[1773209421156,0.07631098,69660.0,69646.0,0.0717915]
[1773209421601,0.07177617,69661.0,69647.0,0.07305613]
[1773209422166,0.001,69660.0,69647.0,0.07305613]
[1773209422719,0.00022001,69662.0,69652.0,0.07305613]
[1773209422871,0.00166001,69662.0,69652.0,0.07305613]
[1773209423070,0.001,69661.0,69652.0,0.07305613]
[1773209423290,0.00166001,69662.0,69652.0,0.07305613]
[1773209423489,0.00022001,69665.0,69652.0,0.07305613]
[1773209423490,0.001,69660.0,69652.0,0.07305613]
[1773209423764,0.00144,69665.0,69652.0,0.07305613]
[1773209423941,0.07198848,69669.0,69655.0,0.04947982]
[1773209423942,0.00022001,69669.0,69655.0,0.04947982]
[1773209424142,0.00022001,69669.0,69660.0,0.07305613]
[1773209424705,0.00022001,69669.0,69662.0,0.07305613]
[1773209426763,0.00022001,69669.0,69663.0,0.07177411]
[1773209426997,0.07198796,69669.0,69663.0,0.07177411]
[1773209427201,0.07198796,69669.0,69661.0,0.07177566]
[1773209428094,0.00022001,69669.0,69661.0,0.07177566]
[1773209428601,0.00022001,69665.0,69661.0,0.07177566]
[1773209428777,0.00022001,69665.0,69660.0,0.07177617]
[1773209429149,0.00022001,69665.0,69660.0,0.1448323]
[1773209429990,0.00022001,69665.0,69661.0,0.07305613]
[1773209430992,0.00022001,69665.0,69663.0,0.07305613]
[1773209431208,0.0004,69673.0,69663.0,0.07305613]
[1773209431362,0.0004,69673.0,69664.0,0.07305613]
[1773209434068,0.0004,69673.0,69666.0,0.07305613]
[1773209434700,0.00166001,69677.0,69666.0,0.07305613]
[1773209434702,0.07896665,69700.0,69666.0,0.07319433]
[1773209434949,0.08354098,69700.0,69690.0,0.04947982]
[1773209435306,0.08354098,69700.0,69692.0,0.00048]
[1773209435632,0.00144,69699.0,69692.0,0.00048]
[1773209436182,0.00723,69700.0,69693.0,0.07174321]
[1773209436376,0.00745001,69700.0,69693.0,0.14479934]
[1773209436603,0.0718483,69703.0,69693.0,0.07174321]
[1773209436604,0.00144,69702.0,69693.0,0.07174321]
[1773209436809,0.00144,69702.0,69694.0,0.07305613]
[1773209438060,0.07172382,69712.0,69694.0,0.07449613]
[1773209438188,0.07172382,69712.0,69693.0,0.07174321]
[1773209438189,0.0741608,69709.0,69693.0,0.07174321]
[1773209438388,0.04947982,69710.0,69693.0,0.07174321]
[1773209438389,0.0741608,69707.0,69693.0,0.07174321]
[1773209440174,0.07172983,69706.0,69693.0,0.07174321]
[1773209440328,0.0741608,69705.0,69693.0,0.07174321]
[1773209442268,0.07195768,69731.0,69693.0,0.07174321]
[1773209442470,0.07195768,69731.0,69693.0,0.07318321]
[1773209442471,0.0741608,69711.0,69693.0,0.07318321]
[1773209442877,0.0741608,69711.0,69693.0,0.07278321]
[1773209443194,0.0741608,69709.0,69694.0,0.00144]
[1773209443623,0.0741608,69709.0,69693.0,0.07134321]
[1773209443993,0.0741608,69709.0,69693.0,0.14475075]
[1773209444392,0.14588755,69709.0,69693.0,0.07134321]
[1773209444596,0.14588755,69709.0,69694.0,0.07340754]
[1773209444782,0.07172675,69709.0,69694.0,0.07340754]
[1773209444982,0.0756008,69708.0,69694.0,0.07340754]
[1773209446630,0.0756008,69708.0,69698.0,0.04947982]
[1773209446832,0.00022001,69718.0,69698.0,0.04947982]
[1773209447028,0.07195792,69731.0,69698.0,0.04947982]
[1773209447029,0.07195792,69731.0,69708.0,0.07340754]
[1773209447030,0.00023,69725.0,69708.0,0.07340754]
[1773209447227,0.00023,69725.0,69712.0,0.04947982]
[1773209447395,0.00144,69723.0,69712.0,0.04947982]
[1773209448282,0.00144,69722.0,69712.0,0.04947982]
[1773209448472,0.00144,69722.0,69713.0,0.07340754]
[1773209448768,0.00144,69722.0,69714.0,0.0717216]
[1773209449782,0.00244,69722.0,69714.0,0.0717216]
[1773209451179,0.00144,69722.0,69715.0,0.07481988]
[1773209451369,0.00144,69723.0,69714.0,0.0717216]
[1773209451570,0.00144,69723.0,69687.0,0.17150213]
[1773209451571,0.0734321,69722.0,69704.0,0.07481988]
[1773209451743,0.0734321,69722.0,69710.0,0.04947982]
[1773209452230,0.00144,69723.0,69703.0,0.07173202]
[1773209452231,0.04947982,69720.0,69703.0,0.07173202]
[1773209452374,0.0734321,69719.0,69703.0,0.07173202]
[1773209452899,0.0734321,69719.0,69704.0,0.07481988]
[1773209453059,0.07171954,69716.0,69705.0,0.07173086]
[1773209453980,0.07171954,69716.0,69696.0,0.07173956]
[1773209453981,0.0734321,69713.0,69692.0,0.07222416]
[1773209454383,0.00144,69712.0,69693.0,0.07481988]
[1773209454604,0.0748721,69712.0,69700.0,0.04947982]
[1773209454815,0.0748721,69712.0,69693.0,0.07481988]
[1773209455238,0.14515679,69711.0,69695.0,0.07481988]
[1773209456221,0.07172469,69711.0,69694.0,0.07174218]
[1773209456423,0.07172469,69711.0,69693.0,0.07174218]
[1773209456424,0.0734321,69710.0,69693.0,0.07174218]
[1773209457294,0.07172674,69709.0,69694.0,0.07481988]
[1773209457498,0.07316674,69709.0,69694.0,0.07481988]
[1773209457699,0.00144,69708.0,69694.0,0.07481988]
[1773209458097,0.07172674,69709.0,69694.0,0.07481988]
[1773209458644,0.00144,69708.0,69694.0,0.07481988]
[1773209459032,0.00144,69707.0,69694.0,0.07481988]
[1773209459229,0.07172983,69706.0,69696.0,0.07481988]
[1773209459645,0.0748721,69705.0,69695.0,0.07174115]
[1773209460023,0.00144,69704.0,69695.0,0.07174115]
[1773209460410,0.00144,69704.0,69693.0,0.07174115]
[1773209460611,0.00144,69704.0,69696.0,0.001]
[1773209460859,0.00144,69704.0,69692.0,1e-08]
[1773209460860,0.0734321,69703.0,69692.0,1e-08]
[1773209461062,0.0734321,69703.0,69690.0,1e-08]
[1773209461358,0.07173395,69702.0,69690.0,1e-08]
[1773209461571,0.0734321,69718.0,69690.0,0.14821784]
[1773209461763,0.0734321,69718.0,69694.0,0.0002]
[1773209461764,0.0748721,69717.0,69694.0,0.0002]
[1773209461971,0.00144,69716.0,69695.0,0.07481988]
[1773209462268,0.0734321,69715.0,69695.0,0.07481988]
[1773209463192,0.00144,69714.0,69695.0,0.07481988]
[1773209463377,0.0004,69708.0,69697.0,0.07481988]
[1773209463580,0.00144,69707.0,69697.0,0.07481988]
[1773209464090,0.07172263,69714.0,69697.0,0.07481988]
[1773209464300,0.00144,69713.0,69697.0,0.07481988]
[1773209464480,0.07172263,69714.0,69697.0,0.07481988]
[1773209464639,0.001,69707.0,69697.0,0.07481988]
[1773209464973,0.07171655,69719.0,69698.0,0.07481988]
[1773209465178,0.00144,69718.0,69698.0,0.07481988]
[1773209465377,0.07171655,69719.0,69700.0,0.07481988]
[1773209465573,0.00144,69718.0,69700.0,0.07481988]
[1773209465968,0.08549543,69724.0,69700.0,0.07481988]
[1773209465969,0.00562,69732.0,69708.0,0.14821783]
[1773209466315,0.00562,69732.0,69721.0,0.07481988]
[1773209466522,0.07732349,69732.0,69721.0,0.07481988]
[1773209467398,0.07170514,69730.0,69721.0,0.0717134]
[1773209467701,0.0734321,69729.0,69715.0,0.07172014]
[1773209468062,0.0735502,69729.0,69715.0,0.07172014]
[1773209468808,0.0735502,69729.0,69711.0,0.00144]
[1773209468809,0.0735502,69729.0,69711.0,0.0717241]
[1773209469204,0.0735502,69729.0,69712.0,0.07481988]
[1773209469794,0.0731472,69728.0,69713.0,0.14654251]
[1773209470196,0.0717072,69728.0,69713.0,0.14654251]
[1773209470417,0.00144,69727.0,69713.0,0.14654251]
[1773209470822,0.00144,69726.0,69713.0,0.14654251]
[1773209471027,0.0734321,69725.0,69713.0,0.07272263]
[1773209471272,0.00144,69724.0,69714.0,0.07501988]
[1773209471851,0.07315145,69724.0,69715.0,0.07172057]
[1773209472028,0.00144,69723.0,69715.0,0.07172057]
[1773209472432,0.00144,69722.0,69715.0,0.14654045]
[1773209473061,0.07170798,69728.0,69715.0,0.07172057]
[1773209473255,0.07170798,69728.0,69716.0,0.07481988]
[1773209473256,0.00144,69727.0,69716.0,0.07481988]
[1773209473457,0.07170798,69728.0,69716.0,0.07481988]
[1773209473608,0.00144,69727.0,69716.0,0.07481988]
[1773209473813,0.001,69722.0,69718.0,0.07481988]
[1773209474062,0.00144,69726.0,69718.0,0.07481988]
[1773209474575,0.00033811,69729.0,69718.0,0.07481988]
[1773209474862,0.00033811,69729.0,69717.0,0.07171851]
[1773209474863,0.0720445,69729.0,69717.0,0.07171851]
[1773209475065,0.0734321,69728.0,69717.0,0.07171851]
[1773209475659,0.00033811,69729.0,69717.0,0.07171851]
[1773209475864,0.00133811,69729.0,69719.0,0.07171646]
[1773209476064,0.00133811,69729.0,69719.0,0.14653634]
[1773209476258,0.00033811,69729.0,69719.0,0.14653634]
[1773209476471,0.00244,69728.0,69719.0,0.14653634]
[1773209476644,0.00144,69728.0,69719.0,0.14653634]
[1773209477675,0.00144,69728.0,69720.0,0.07481988]
[1773209478167,0.00144,69728.0,69721.0,0.0717144]
[1773209478587,0.00244,69728.0,69721.0,0.0717144]
[1773209478784,0.00144,69727.0,69719.0,0.07171608]
[1773209479868,0.00144,69727.0,69719.0,0.14776952]
[1773209481818,0.00144,69727.0,69719.0,0.14796952]
[1773209483977,0.00166001,69728.0,69720.0,0.07605344]
[1773209484190,0.00022001,69728.0,69720.0,0.07605344]
[1773209484392,0.0015581,69729.0,69720.0,0.07605344]
[1773209485819,0.0015581,69729.0,69721.0,0.0717144]
[1773209486335,0.0004,69725.0,69721.0,0.0717144]
[1773209486688,0.0004,69725.0,69721.0,0.14776784]
[1773209487089,0.0004,69725.0,69720.0,0.0717144]
[1773209487895,0.0004,69725.0,69719.0,0.0002]
[1773209488083,0.0004,69725.0,69714.0,0.0733616]
[1773209488289,0.0004,69725.0,69715.0,0.07605344]
[1773209488711,0.00184,69725.0,69721.0,0.00374039]
[1773209490528,0.07174513,69724.0,69702.0,0.07605344]
[1773209490689,0.07174513,69724.0,69708.0,0.07172777]
[1773209491975,0.07274513,69724.0,69708.0,0.07172777]
[1773209492154,0.07174513,69724.0,69708.0,0.07172777]